[Event "*** Titled Tuesday Blitz"]
[Site "Chess.com"]
[Date "2021.02.02"]
[Round "7"]
[White "carlocapau"]
[Black "djano"]
[Result "0-1"]
[WhiteElo "2322"]
[BlackElo "2473"]
[TimeControl "180+1"]
[EndTime "11:20:18 PST"]
[Termination "djano won by resignation"]

1. d4 {[%clk 0:03:00.9]} 1... Nf6 {[%clk 0:02:59.1]} 2. c4 {[%clk 0:03:00.7]}
2... c5 {[%clk 0:02:58.3]} 3. d5 {[%clk 0:03:00.6]} 3... b5 {[%clk 0:02:58.6]}
4. cxb5 {[%clk 0:03:00.9]} 4... a6 {[%clk 0:02:58.7]} 5. bxa6 {[%clk 0:03:01.4]}
5... Bxa6 {[%clk 0:02:57.9]} 6. Nc3 {[%clk 0:02:59.1]} 6... d6 {[%clk
0:02:57.1]} 7. f4 {[%clk 0:02:58.9]} 7... g6 {[%clk 0:02:54.5]} 8. Nf3 {[%clk
0:02:58.1]} 8... Bg7 {[%clk 0:02:54.4]} 9. e4 {[%clk 0:02:58]} 9... Bxf1 {[%clk
0:02:55.3]} 10. Rxf1 {[%clk 0:02:58.5]} 10... O-O {[%clk 0:02:55.5]} 11. Kf2
{[%clk 0:02:53.7]} 11... Qb6 {[%clk 0:02:53.7]} 12. Kg1 {[%clk 0:02:53.2]} 12...
Na6 {[%clk 0:02:46.5]} 13. Kh1 {[%clk 0:02:51.1]} 13... c4 {[%clk 0:02:39.8]}
14. Qe2 {[%clk 0:02:38.6]} 14... Rfc8 {[%clk 0:02:21.4]} 15. e5 {[%clk
0:02:31.3]} 15... Ne8 {[%clk 0:02:04.2]} 16. Be3 {[%clk 0:02:24]} 16... Nc5
{[%clk 0:02:01.7]} 17. Bd4 {[%clk 0:02:18.9]} 17... Rab8 {[%clk 0:01:54.7]} 18.
Rab1 {[%clk 0:02:17.3]} 18... Qa6 {[%clk 0:01:45]} 19. f5 {[%clk 0:02:10.8]}
19... Nd3 {[%clk 0:01:27.7]} 20. e6 {[%clk 0:01:59.8]} 20... f6 {[%clk
0:01:17.1]} 21. fxg6 {[%clk 0:01:54.8]} 21... hxg6 {[%clk 0:01:15.5]} 22. Qe4
{[%clk 0:01:54.1]} 22... f5 {[%clk 0:01:14.9]} 23. Qh4 {[%clk 0:01:51.7]} 23...
Ne5 {[%clk 0:01:06.2]} 24. Ng5 {[%clk 0:01:42.6]} 24... Nf6 {[%clk 0:01:05.4]}
25. Nf7 {[%clk 0:01:26.6]} 25... Nxf7 {[%clk 0:01:02.9]} 26. exf7+ {[%clk
0:01:25.3]} 26... Kxf7 {[%clk 0:01:03.8]} 27. Bxf6 {[%clk 0:01:24.3]} 27... exf6
{[%clk 0:01:01.1]} 28. Rfe1 {[%clk 0:01:16.9]} 28... Re8 {[%clk 0:01:00.3]} 29.
Qf2 {[%clk 0:01:09.8]} 29... Re5 {[%clk 0:00:54.6]} 30. b3 {[%clk 0:00:56]}
30... cxb3 {[%clk 0:00:51.2]} 31. Rxb3 {[%clk 0:00:52.4]} 31... Rxb3 {[%clk
0:00:50.7]} 32. axb3 {[%clk 0:00:51.6]} 32... Qd3 {[%clk 0:00:46.6]} 33. Ne2
{[%clk 0:00:27.8]} 33... Qxb3 {[%clk 0:00:39.5]} 34. Nf4 {[%clk 0:00:24.2]}
34... Qb6 {[%clk 0:00:25.4]} 35. Qf1 {[%clk 0:00:18.2]} 35... Bh6 {[%clk
0:00:24.6]} 36. Rb1 {[%clk 0:00:15.9]} 36... Qe3 {[%clk 0:00:20.5]} 37. Rb7+
{[%clk 0:00:14.3]} 37... Re7 {[%clk 0:00:20.1]} 38. Rxe7+ {[%clk 0:00:13.4]}
38... Qxe7 {[%clk 0:00:18.4]} 39. Ne6 {[%clk 0:00:13.6]} 39... Qa7 {[%clk
0:00:16.4]} 40. h3 {[%clk 0:00:11.5]} 40... Qe3 {[%clk 0:00:15.4]} 41. Qb1
{[%clk 0:00:06.6]} 41... Qc1+ {[%clk 0:00:15.5]} 42. Qxc1 {[%clk 0:00:06.8]}
42... Bxc1 {[%clk 0:00:16.4]} 43. Kg1 {[%clk 0:00:07.2]} 43... f4 {[%clk
0:00:16.9]} 44. Kf2 {[%clk 0:00:07.4]} 44... g5 {[%clk 0:00:17.3]} 45. Kf3
{[%clk 0:00:07.7]} 45... Kg6 {[%clk 0:00:16.6]} 46. Nd8 {[%clk 0:00:07.6]} 46...
Kf5 {[%clk 0:00:16.1]} 47. Nf7 {[%clk 0:00:07.6]} 47... Ba3 {[%clk 0:00:15.5]}
48. Nh6+ {[%clk 0:00:07.6]} 48... Ke5 {[%clk 0:00:15.1]} 49. Kg4 {[%clk
0:00:07.1]} 49... Kxd5 {[%clk 0:00:14.1]} 50. Kf5 {[%clk 0:00:07.6]} 50... Kc4
{[%clk 0:00:13.5]} 51. Ng4 {[%clk 0:00:06.4]} 51... Bb2 {[%clk 0:00:11.8]} 52.
Nxf6 {[%clk 0:00:05.4]} 52... Bxf6 {[%clk 0:00:11.7]} 53. Kxf6 {[%clk
0:00:06.3]} 53... d5 {[%clk 0:00:12.6]} 54. Kxg5 {[%clk 0:00:06.8]} 54... d4
{[%clk 0:00:13.3]} 55. h4 {[%clk 0:00:07.3]} 55... d3 {[%clk 0:00:13.5]} 56. h5
{[%clk 0:00:07.9]} 56... d2 {[%clk 0:00:14]} 57. h6 {[%clk 0:00:08.4]} 57...
d1=Q {[%clk 0:00:14.5]} 58. h7 {[%clk 0:00:08.6]} 58... Qd4 {[%clk 0:00:13.2]}
59. Kg6 {[%clk 0:00:07.5]} 59... Qh8 {[%clk 0:00:12.8]} 0-1

[Event "*** Titled Tuesday Blitz"]
[Site "Chess.com"]
[Date "2021.02.02"]
[Round "7"]
[White "The_Machine04"]
[Black "Cambek64"]
[Result "0-1"]
[WhiteElo "2487"]
[BlackElo "2293"]
[TimeControl "180+1"]
[EndTime "11:20:18 PST"]
[Termination "Cambek64 won on time"]

1. d4 {[%clk 0:02:32.3]} 1... Nf6 {[%clk 0:02:35.5]} 2. Bg5 {[%clk 0:02:28.9]}
2... d5 {[%clk 0:02:33.1]} 3. e3 {[%clk 0:02:28.4]} 3... Bf5 {[%clk 0:02:28.8]}
4. c4 {[%clk 0:02:24.1]} 4... Bxb1 {[%clk 0:02:27.3]} 5. Rxb1 {[%clk 0:02:23.2]}
5... Ne4 {[%clk 0:02:27.5]} 6. Bf4 {[%clk 0:02:21.4]} 6... e6 {[%clk 0:02:23.2]}
7. c5 {[%clk 0:02:19.4]} 7... b6 {[%clk 0:02:18.5]} 8. b4 {[%clk 0:02:18.7]}
8... Nc3 {[%clk 0:02:16.3]} 9. Qc2 {[%clk 0:02:16.6]} 9... Nxb1 {[%clk
0:02:15.7]} 10. Qxb1 {[%clk 0:02:17.5]} 10... c6 {[%clk 0:02:09.4]} 11. Nf3
{[%clk 0:02:16.3]} 11... f6 {[%clk 0:02:02.2]} 12. Be2 {[%clk 0:02:13.2]} 12...
Be7 {[%clk 0:02:02]} 13. O-O {[%clk 0:02:11.5]} 13... O-O {[%clk 0:02:02.3]} 14.
Bd3 {[%clk 0:02:10]} 14... f5 {[%clk 0:02:01]} 15. Ne5 {[%clk 0:02:08.6]} 15...
Bf6 {[%clk 0:01:51.8]} 16. Rc1 {[%clk 0:01:55.5]} 16... b5 {[%clk 0:01:48.2]}
17. a4 {[%clk 0:01:53.3]} 17... a6 {[%clk 0:01:46.4]} 18. h3 {[%clk 0:01:50.7]}
18... Qc8 {[%clk 0:01:42.7]} 19. Qa2 {[%clk 0:01:47.6]} 19... Nd7 {[%clk
0:01:42.2]} 20. Nxd7 {[%clk 0:01:42.6]} 20... Qxd7 {[%clk 0:01:39.6]} 21. Ra1
{[%clk 0:01:43.2]} 21... Qb7 {[%clk 0:01:32]} 22. Bd6 {[%clk 0:01:39.4]} 22...
Rfc8 {[%clk 0:01:28.5]} 23. f4 {[%clk 0:01:37.4]} 23... Bd8 {[%clk 0:01:22.6]}
24. g4 {[%clk 0:01:32.9]} 24... g6 {[%clk 0:01:22]} 25. g5 {[%clk 0:01:32.9]}
25... Bc7 {[%clk 0:01:14.9]} 26. Bxc7 {[%clk 0:01:31]} 26... Qxc7 {[%clk
0:01:14.8]} 27. axb5 {[%clk 0:01:28.4]} 27... axb5 {[%clk 0:01:05.1]} 28. Qxa8
{[%clk 0:01:27.9]} 28... Rxa8 {[%clk 0:01:05.2]} 29. Rxa8+ {[%clk 0:01:28.8]}
29... Kg7 {[%clk 0:01:04.5]} 30. Ra6 {[%clk 0:01:13]} 30... h6 {[%clk
0:01:02.7]} 31. h4 {[%clk 0:01:06.6]} 31... hxg5 {[%clk 0:00:59.9]} 32. hxg5
{[%clk 0:01:07.5]} 32... Qb7 {[%clk 0:00:57.7]} 33. Rb6 {[%clk 0:00:59.5]} 33...
Qc8 {[%clk 0:00:48.5]} 34. Kf2 {[%clk 0:00:57.5]} 34... Kf7 {[%clk 0:00:47.6]}
35. Bxb5 {[%clk 0:00:45.7]} 35... cxb5 {[%clk 0:00:45.9]} 36. Rxb5 {[%clk
0:00:46.6]} 36... Qa6 {[%clk 0:00:43.6]} 37. Ra5 {[%clk 0:00:34.5]} 37... Qd3
{[%clk 0:00:38.2]} 38. Ra7+ {[%clk 0:00:33.4]} 38... Ke8 {[%clk 0:00:37]} 39.
Rb7 {[%clk 0:00:28]} 39... Qd2+ {[%clk 0:00:27.9]} 40. Kf3 {[%clk 0:00:27.9]}
40... Qd1+ {[%clk 0:00:25.1]} 41. Kf2 {[%clk 0:00:27.9]} 41... Qc2+ {[%clk
0:00:22.7]} 42. Ke1 {[%clk 0:00:16.4]} 42... Qe4 {[%clk 0:00:21.1]} 43. Kd2
{[%clk 0:00:15]} 43... e5 {[%clk 0:00:20.4]} 44. fxe5 {[%clk 0:00:04.2]} 44...
f4 {[%clk 0:00:17.6]} 45. exf4 {[%clk 0:00:04]} 45... Qxd4+ {[%clk 0:00:17.4]}
46. Kc2 {[%clk 0:00:04.2]} 46... Qc4+ {[%clk 0:00:16.7]} 47. Kb2 {[%clk
0:00:04.3]} 47... d4 {[%clk 0:00:17.2]} 48. Rb8+ {[%clk 0:00:02.5]} 48... Kd7
{[%clk 0:00:15.1]} 49. Rb6 {[%clk 0:00:03.1]} 49... Qc3+ {[%clk 0:00:13.4]} 50.
Ka2 {[%clk 0:00:01.7]} 50... d3 {[%clk 0:00:13.8]} 51. Rd6+ {[%clk 0:00:01.4]}
51... Ke7 {[%clk 0:00:14]} 52. c6 {[%clk 0:00:00.9]} 52... d2 {[%clk 0:00:12]}
0-1

[Event "*** Titled Tuesday Blitz"]
[Site "Chess.com"]
[Date "2021.02.02"]
[Round "7"]
[White "poliplaza"]
[Black "GumisGLHF"]
[Result "1-0"]
[WhiteElo "2510"]
[BlackElo "2359"]
[TimeControl "180+1"]
[EndTime "11:20:20 PST"]
[Termination "poliplaza won by resignation"]

1. d4 {[%clk 0:03:00.1]} 1... Nf6 {[%clk 0:02:59.7]} 2. c4 {[%clk 0:03:00.3]}
2... Nc6 {[%clk 0:02:59.2]} 3. Nf3 {[%clk 0:02:59.4]} 3... d6 {[%clk 0:02:58.5]}
4. d5 {[%clk 0:02:59.1]} 4... Ne5 {[%clk 0:02:58.2]} 5. Nxe5 {[%clk 0:02:59.6]}
5... dxe5 {[%clk 0:02:59.1]} 6. Nc3 {[%clk 0:03:00]} 6... e6 {[%clk 0:02:55.2]}
7. e4 {[%clk 0:03:00.2]} 7... exd5 {[%clk 0:02:52]} 8. cxd5 {[%clk 0:03:01.1]}
8... Bc5 {[%clk 0:02:50.7]} 9. Be2 {[%clk 0:02:53.8]} 9... O-O {[%clk
0:02:49.7]} 10. O-O {[%clk 0:02:53.5]} 10... a6 {[%clk 0:02:48.4]} 11. Bg5
{[%clk 0:02:52.1]} 11... h6 {[%clk 0:02:47.9]} 12. Bh4 {[%clk 0:02:52]} 12... b5
{[%clk 0:02:43.7]} 13. Rc1 {[%clk 0:02:51.5]} 13... g5 {[%clk 0:02:36.2]} 14.
Bg3 {[%clk 0:02:50.9]} 14... Bd6 {[%clk 0:02:34]} 15. h4 {[%clk 0:02:32.5]}
15... Kg7 {[%clk 0:02:33.3]} 16. a3 {[%clk 0:01:53.7]} 16... Bd7 {[%clk
0:02:13.6]} 17. Qd2 {[%clk 0:01:52.7]} 17... Kg6 {[%clk 0:01:59.2]} 18. Qe3
{[%clk 0:01:10.8]} 18... Nh5 {[%clk 0:01:46.5]} 19. Bxh5+ {[%clk 0:01:08.6]}
19... Kxh5 {[%clk 0:01:47.4]} 20. hxg5 {[%clk 0:00:57.2]} 20... hxg5 {[%clk
0:01:45]} 21. a4 {[%clk 0:00:54.1]} 21... Kg6 {[%clk 0:01:35.3]} 22. axb5 {[%clk
0:00:44.5]} 22... axb5 {[%clk 0:01:36.2]} 23. Qd3 {[%clk 0:00:44.8]} 23... Rb8
{[%clk 0:01:05.3]} 24. f3 {[%clk 0:00:43.4]} 24... b4 {[%clk 0:01:04.7]} 25. Ne2
{[%clk 0:00:42]} 25... Bb5 {[%clk 0:01:04.2]} 26. Qd2 {[%clk 0:00:41.5]} 26...
Rh8 {[%clk 0:00:58.8]} 27. Qc2 {[%clk 0:00:29.7]} 27... Qf8 {[%clk 0:00:55.8]}
28. f4 {[%clk 0:00:29.5]} 28... gxf4 {[%clk 0:00:52]} 29. Nxf4+ {[%clk
0:00:29.5]} 29... Kg7 {[%clk 0:00:50.7]} 30. Ne6+ {[%clk 0:00:24.9]} 30... fxe6
{[%clk 0:00:50.9]} 31. Rxf8 {[%clk 0:00:24.9]} 31... Rbxf8 {[%clk 0:00:50.6]}
32. Bf2 {[%clk 0:00:18.8]} 32... exd5 {[%clk 0:00:45.5]} 33. exd5 {[%clk
0:00:17.4]} 33... Rh6 {[%clk 0:00:36.7]} 34. Bc5 {[%clk 0:00:16]} 34... Rhf6
{[%clk 0:00:19.9]} 35. Bxd6 {[%clk 0:00:12.5]} 35... cxd6 {[%clk 0:00:20.8]} 36.
Qd2 {[%clk 0:00:07.6]} 36... R8f7 {[%clk 0:00:18.6]} 37. Qxb4 {[%clk 0:00:07.3]}
37... Bd3 {[%clk 0:00:18.3]} 38. Qg4+ {[%clk 0:00:04.1]} 38... Bg6 {[%clk
0:00:18.1]} 39. Kh2 {[%clk 0:00:03.5]} 39... e4 {[%clk 0:00:18.6]} 40. Qg3
{[%clk 0:00:02.9]} 40... Re7 {[%clk 0:00:17.6]} 41. Re1 {[%clk 0:00:03.5]} 41...
Rf5 {[%clk 0:00:17.3]} 42. Re3 {[%clk 0:00:03.8]} 42... Rh5+ {[%clk 0:00:17.3]}
43. Kg1 {[%clk 0:00:04.4]} 43... Rf5 {[%clk 0:00:17]} 44. b4 {[%clk 0:00:04]}
44... Ref7 {[%clk 0:00:17.5]} 45. b5 {[%clk 0:00:04.1]} 45... Rf1+ {[%clk
0:00:17.7]} 46. Kh2 {[%clk 0:00:04.6]} 46... Rf8 {[%clk 0:00:18.6]} 47. Qxd6
{[%clk 0:00:03.3]} 47... Rh8+ {[%clk 0:00:18.6]} 48. Kg3 {[%clk 0:00:03.9]}
48... Rg8 {[%clk 0:00:17.4]} 49. Qe5+ {[%clk 0:00:04.4]} 49... Kh7 {[%clk
0:00:17.4]} 50. Kh2 {[%clk 0:00:03.8]} 50... Bf7 {[%clk 0:00:18.3]} 51. Rh3+
{[%clk 0:00:04.2]} 51... Kg6 {[%clk 0:00:17.7]} 52. Rg3+ {[%clk 0:00:04.8]}
52... Kh7 {[%clk 0:00:18]} 53. Qxe4+ {[%clk 0:00:05.1]} 53... Bg6 {[%clk
0:00:18]} 54. Qe7+ {[%clk 0:00:05.2]} 54... Rg7 {[%clk 0:00:17.8]} 55. Qh4+
{[%clk 0:00:05.3]} 55... Kg8 {[%clk 0:00:17.6]} 56. d6 {[%clk 0:00:05.1]} 56...
Rh7 {[%clk 0:00:17.8]} 57. Rxg6+ {[%clk 0:00:05.4]} 57... Kh8 {[%clk 0:00:17.9]}
58. Qxh7+ {[%clk 0:00:06.3]} 58... Kxh7 {[%clk 0:00:18.8]} 59. Rg3 {[%clk
0:00:06.8]} 59... Rd1 {[%clk 0:00:18.9]} 60. Rb3 {[%clk 0:00:07.1]} 60... Rxd6
{[%clk 0:00:19.1]} 61. b6 {[%clk 0:00:08]} 61... Rd8 {[%clk 0:00:20]} 62. b7
{[%clk 0:00:08.5]} 62... Rb8 {[%clk 0:00:20.9]} 63. Kg3 {[%clk 0:00:09.2]} 63...
Kg6 {[%clk 0:00:21.8]} 64. Kf4 {[%clk 0:00:09.8]} 64... Kf6 {[%clk 0:00:22.7]}
65. g4 {[%clk 0:00:10.4]} 65... Ke6 {[%clk 0:00:23.6]} 66. g5 {[%clk 0:00:10.8]}
66... Kd6 {[%clk 0:00:24.5]} 67. Kf5 {[%clk 0:00:10.5]} 67... Kd7 {[%clk
0:00:23.7]} 68. Kf6 {[%clk 0:00:10.6]} 68... Rg8 {[%clk 0:00:24.6]} 69. g6
{[%clk 0:00:10.8]} 69... Rf8+ {[%clk 0:00:25.5]} 70. Kg7 {[%clk 0:00:11.2]} 1-0

[Event "*** Titled Tuesday Blitz"]
[Site "Chess.com"]
[Date "2021.02.02"]
[Round "7"]
[White "Politov_Pavel"]
[Black "markowskitomasz"]
[Result "0-1"]
[WhiteElo "2427"]
[BlackElo "2648"]
[TimeControl "180+1"]
[EndTime "11:20:24 PST"]
[Termination "markowskitomasz won by checkmate"]

1. e4 {[%clk 0:03:00.9]} 1... c5 {[%clk 0:02:59.1]} 2. Nf3 {[%clk 0:02:56.3]}
2... Nc6 {[%clk 0:02:58.8]} 3. d4 {[%clk 0:02:55.5]} 3... cxd4 {[%clk
0:02:59.2]} 4. Nxd4 {[%clk 0:02:56.4]} 4... e5 {[%clk 0:02:59.6]} 5. Nb5 {[%clk
0:02:55.4]} 5... d6 {[%clk 0:02:59.7]} 6. c4 {[%clk 0:02:55.1]} 6... Be6 {[%clk
0:02:59]} 7. N1c3 {[%clk 0:02:52.9]} 7... a6 {[%clk 0:02:58.1]} 8. Na3 {[%clk
0:02:52.8]} 8... Nf6 {[%clk 0:02:57.8]} 9. g3 {[%clk 0:02:52.4]} 9... Rc8 {[%clk
0:02:57.3]} 10. Nc2 {[%clk 0:02:40.6]} 10... Na5 {[%clk 0:02:54.6]} 11. Ne3
{[%clk 0:02:25.9]} 11... Nxc4 {[%clk 0:02:46]} 12. Nxc4 {[%clk 0:01:55.3]} 12...
Bxc4 {[%clk 0:02:42.9]} 13. Qa4+ {[%clk 0:01:54.9]} 13... Qd7 {[%clk 0:02:01]}
14. Bh3 {[%clk 0:01:52.7]} 14... Qxa4 {[%clk 0:01:50]} 15. Nxa4 {[%clk
0:01:52.4]} 15... Rc6 {[%clk 0:01:43.3]} 16. Bg2 {[%clk 0:01:46.1]} 16... Be7
{[%clk 0:01:37.1]} 17. Bg5 {[%clk 0:01:42.7]} 17... O-O {[%clk 0:01:29.9]} 18.
Bxf6 {[%clk 0:01:32.7]} 18... Bxf6 {[%clk 0:01:30.8]} 19. Nc3 {[%clk 0:01:32.8]}
19... b5 {[%clk 0:01:26.4]} 20. Nd5 {[%clk 0:01:23]} 20... Bxd5 {[%clk
0:01:25.8]} 21. exd5 {[%clk 0:01:23.9]} 21... Rc2 {[%clk 0:01:25.6]} 22. b3
{[%clk 0:01:11.8]} 22... e4 {[%clk 0:01:02.5]} 23. Rd1 {[%clk 0:01:02.8]} 23...
Bc3+ {[%clk 0:01:01.4]} 24. Kf1 {[%clk 0:00:59.3]} 24... f5 {[%clk 0:01:01.1]}
25. g4 {[%clk 0:00:58]} 25... fxg4 {[%clk 0:00:53]} 26. Bxe4 {[%clk 0:00:58.1]}
26... Rfxf2+ {[%clk 0:00:41.8]} 27. Kg1 {[%clk 0:00:59]} 27... Rxa2 {[%clk
0:00:40.4]} 28. Rc1 {[%clk 0:00:55.2]} 28... b4 {[%clk 0:00:39.2]} 29. Rf1
{[%clk 0:00:54.1]} 29... Rxf1+ {[%clk 0:00:38.8]} 30. Kxf1 {[%clk 0:00:54.1]}
30... g6 {[%clk 0:00:37.2]} 31. Rg1 {[%clk 0:00:50.3]} 31... Rxh2 {[%clk
0:00:34.6]} 32. Rxg4 {[%clk 0:00:48.3]} 32... Rb2 {[%clk 0:00:34]} 33. Bd3
{[%clk 0:00:44.2]} 33... Rxb3 {[%clk 0:00:30.8]} 34. Bxa6 {[%clk 0:00:43.8]}
34... Ra3 {[%clk 0:00:30.7]} 35. Bc4 {[%clk 0:00:43.3]} 35... b3 {[%clk
0:00:29.4]} 36. Ke2 {[%clk 0:00:40.3]} 36... b2 {[%clk 0:00:29]} 37. Bd3 {[%clk
0:00:40.9]} 37... Ra1 {[%clk 0:00:27.7]} 38. Rc4 {[%clk 0:00:41.5]} 38... b1=Q
{[%clk 0:00:15]} 39. Bxb1 {[%clk 0:00:40.6]} 39... Rxb1 {[%clk 0:00:15.9]} 40.
Rxc3 {[%clk 0:00:41.2]} 40... Rb5 {[%clk 0:00:16]} 41. Rd3 {[%clk 0:00:40.7]}
41... Kf7 {[%clk 0:00:16.3]} 42. Kf3 {[%clk 0:00:41.4]} 42... Kf6 {[%clk
0:00:16.6]} 43. Ke4 {[%clk 0:00:42.3]} 43... Rb4+ {[%clk 0:00:16.9]} 44. Ke3
{[%clk 0:00:41.4]} 44... Ke5 {[%clk 0:00:17.1]} 45. Kf3 {[%clk 0:00:40.8]} 45...
Rd4 {[%clk 0:00:12.7]} 46. Ra3 {[%clk 0:00:39.5]} 46... Rxd5 {[%clk 0:00:11.8]}
47. Ra7 {[%clk 0:00:40.4]} 47... h5 {[%clk 0:00:11.4]} 48. Rg7 {[%clk
0:00:40.6]} 48... Kf5 {[%clk 0:00:11]} 49. Rg8 {[%clk 0:00:41]} 49... Rd3+
{[%clk 0:00:10.8]} 50. Ke2 {[%clk 0:00:41.3]} 50... Ra3 {[%clk 0:00:10.5]} 51.
Rd8 {[%clk 0:00:41.5]} 51... Ra6 {[%clk 0:00:10.3]} 52. Re8 {[%clk 0:00:41]}
52... h4 {[%clk 0:00:09.6]} 53. Kf3 {[%clk 0:00:41]} 53... Ra3+ {[%clk
0:00:09.4]} 54. Kg2 {[%clk 0:00:40.8]} 54... g5 {[%clk 0:00:09.6]} 55. Re7
{[%clk 0:00:40.2]} 55... Kg4 {[%clk 0:00:08.9]} 56. Re4+ {[%clk 0:00:39.7]}
56... Kh5 {[%clk 0:00:09.1]} 57. Rd4 {[%clk 0:00:39.8]} 57... Ra2+ {[%clk
0:00:08.9]} 58. Kf3 {[%clk 0:00:39.4]} 58... g4+ {[%clk 0:00:08.4]} 59. Kf4
{[%clk 0:00:39.2]} 59... Rf2+ {[%clk 0:00:08.2]} 60. Ke3 {[%clk 0:00:39.2]}
60... Rf3+ {[%clk 0:00:08.3]} 61. Ke2 {[%clk 0:00:39.9]} 61... Rf6 {[%clk
0:00:08.3]} 62. Rd5+ {[%clk 0:00:39.8]} 62... Kg6 {[%clk 0:00:08.2]} 63. Rd4
{[%clk 0:00:39.9]} 63... Kg5 {[%clk 0:00:08.2]} 64. Rd5+ {[%clk 0:00:40]} 64...
Kf4 {[%clk 0:00:08.3]} 65. Rd4+ {[%clk 0:00:39.6]} 65... Kg3 {[%clk 0:00:08.3]}
66. Rd3+ {[%clk 0:00:40]} 66... Kh2 {[%clk 0:00:08.4]} 67. Rd4 {[%clk
0:00:40.7]} 67... Kh3 {[%clk 0:00:07.9]} 68. Rd5 {[%clk 0:00:40.8]} 68... g3
{[%clk 0:00:07.9]} 69. Rg5 {[%clk 0:00:41.4]} 69... g2 {[%clk 0:00:07.4]} 70.
Rf5 {[%clk 0:00:41.6]} 70... Rxf5 {[%clk 0:00:07.1]} 71. Ke3 {[%clk 0:00:42]}
71... g1=Q+ {[%clk 0:00:06.4]} 72. Ke4 {[%clk 0:00:42.9]} 72... Qg4+ {[%clk
0:00:06.3]} 73. Kd3 {[%clk 0:00:42.5]} 73... Rf3+ {[%clk 0:00:06.3]} 74. Ke2
{[%clk 0:00:43.4]} 74... Qg2+ {[%clk 0:00:06.1]} 75. Ke1 {[%clk 0:00:44.3]}
75... Rf1# {[%clk 0:00:06.2]} 0-1

[Event "*** Titled Tuesday Blitz"]
[Site "Chess.com"]
[Date "2021.02.02"]
[Round "7"]
[White "TigrVShlyape"]
[Black "DamianoLew95"]
[Result "1/2-1/2"]
[WhiteElo "2834"]
[BlackElo "2596"]
[TimeControl "180+1"]
[EndTime "11:20:30 PST"]
[Termination "Game drawn by repetition"]

1. d4 {[%clk 0:03:00.9]} 1... d5 {[%clk 0:03:00.2]} 2. Nf3 {[%clk 0:02:59.5]}
2... Nf6 {[%clk 0:03:00]} 3. Bf4 {[%clk 0:02:59.6]} 3... c5 {[%clk 0:03:00.3]}
4. e3 {[%clk 0:02:59.5]} 4... Nc6 {[%clk 0:03:00]} 5. Nbd2 {[%clk 0:02:59.6]}
5... Qb6 {[%clk 0:02:59.4]} 6. dxc5 {[%clk 0:02:59.5]} 6... Qxb2 {[%clk
0:02:59.4]} 7. Rb1 {[%clk 0:02:59.6]} 7... Qc3 {[%clk 0:02:59.1]} 8. Bb5 {[%clk
0:02:59.8]} 8... g6 {[%clk 0:02:56.9]} 9. O-O {[%clk 0:03:00.1]} 9... Bg7 {[%clk
0:02:56.7]} 10. Nd4 {[%clk 0:02:55.9]} 10... Bd7 {[%clk 0:02:47.7]} 11. N2b3
{[%clk 0:02:55]} 11... a6 {[%clk 0:02:31.8]} 12. Bxc6 {[%clk 0:02:35.6]} 12...
bxc6 {[%clk 0:02:28]} 13. Be5 {[%clk 0:02:34.1]} 13... Qc4 {[%clk 0:02:27.3]}
14. Qd3 {[%clk 0:02:31.5]} 14... Qxd3 {[%clk 0:02:02.7]} 15. cxd3 {[%clk
0:02:31]} 15... O-O {[%clk 0:01:55.8]} 16. Na5 {[%clk 0:02:28.6]} 16... Rfc8
{[%clk 0:01:52.4]} 17. Rb7 {[%clk 0:02:23.8]} 17... Be8 {[%clk 0:01:44.4]} 18.
Rxe7 {[%clk 0:01:59.3]} 18... Nd7 {[%clk 0:01:34.5]} 19. Bxg7 {[%clk 0:01:33.7]}
19... Kxg7 {[%clk 0:01:35.4]} 20. Rc1 {[%clk 0:01:29.2]} 20... Kf8 {[%clk
0:01:20.7]} 21. Ndxc6 {[%clk 0:01:26]} 21... Nf6 {[%clk 0:01:05.1]} 22. Rxe8+
{[%clk 0:01:15.3]} 22... Kxe8 {[%clk 0:00:54]} 23. Rb1 {[%clk 0:01:11.7]} 23...
Rc7 {[%clk 0:00:49]} 24. d4 {[%clk 0:01:10.2]} 24... Rac8 {[%clk 0:00:22.6]} 25.
Ne5 {[%clk 0:00:50.4]} 25... Ne4 {[%clk 0:00:19.6]} 26. f3 {[%clk 0:00:48.1]}
26... Nxc5 {[%clk 0:00:18.3]} 27. dxc5 {[%clk 0:00:44]} 27... Rxc5 {[%clk
0:00:19.2]} 28. Nb3 {[%clk 0:00:36.3]} 28... Rc2 {[%clk 0:00:19.1]} 29. Nd4
{[%clk 0:00:18.7]} 29... Rxa2 {[%clk 0:00:17.3]} 30. Nec6 {[%clk 0:00:17.8]}
30... a5 {[%clk 0:00:11.9]} 31. Rb7 {[%clk 0:00:16.6]} 31... a4 {[%clk
0:00:09.4]} 32. Ra7 {[%clk 0:00:15.9]} 32... a3 {[%clk 0:00:09.1]} 33. h4 {[%clk
0:00:16]} 33... h5 {[%clk 0:00:08.8]} 34. Kh2 {[%clk 0:00:16.2]} 34... Ra1
{[%clk 0:00:08.6]} 35. Kg3 {[%clk 0:00:16.1]} 35... a2 {[%clk 0:00:09]} 36. Kf4
{[%clk 0:00:16.1]} 36... Rc1 {[%clk 0:00:08.4]} 37. Rxa2 {[%clk 0:00:15.4]}
37... R1xc6 {[%clk 0:00:08.7]} 38. Nxc6 {[%clk 0:00:15.2]} 38... Rxc6 {[%clk
0:00:09.6]} 39. Ke5 {[%clk 0:00:13.4]} 39... Rc3 {[%clk 0:00:09.7]} 40. Kd4
{[%clk 0:00:12.5]} 40... Rb3 {[%clk 0:00:09.1]} 41. g3 {[%clk 0:00:08.7]} 41...
Ke7 {[%clk 0:00:08.6]} 42. Ra5 {[%clk 0:00:08.3]} 42... Ke6 {[%clk 0:00:08.2]}
43. Ra6+ {[%clk 0:00:07.9]} 43... Ke7 {[%clk 0:00:08.4]} 44. Ra5 {[%clk
0:00:07.3]} 44... Ke6 {[%clk 0:00:08.8]} 45. Ra6+ {[%clk 0:00:07.4]} 45... Ke7
{[%clk 0:00:09.3]} 46. Rc6 {[%clk 0:00:06.9]} 46... Ra3 {[%clk 0:00:08.8]} 47.
Rc5 {[%clk 0:00:06.8]} 47... Ke6 {[%clk 0:00:09.3]} 48. Rc6+ {[%clk 0:00:07]}
48... Ke7 {[%clk 0:00:09.7]} 49. Rb6 {[%clk 0:00:07]} 49... Ra2 {[%clk
0:00:08.4]} 50. Kxd5 {[%clk 0:00:06.6]} 50... Rg2 {[%clk 0:00:08.5]} 51. Ke5
{[%clk 0:00:06.4]} 51... Rxg3 {[%clk 0:00:08.4]} 52. Rb7+ {[%clk 0:00:06.7]}
52... Ke8 {[%clk 0:00:07.9]} 53. Kf4 {[%clk 0:00:05.7]} 53... Rh3 {[%clk
0:00:08.3]} 54. e4 {[%clk 0:00:06]} 54... Rxh4+ {[%clk 0:00:08.2]} 55. Kg5
{[%clk 0:00:05.8]} 55... Rh3 {[%clk 0:00:08.4]} 56. f4 {[%clk 0:00:06.1]} 56...
Rc3 {[%clk 0:00:08.4]} 57. f5 {[%clk 0:00:05.5]} 57... gxf5 {[%clk 0:00:07.8]}
58. exf5 {[%clk 0:00:05.5]} 58... Rc6 {[%clk 0:00:07.2]} 59. Kxh5 {[%clk
0:00:05.3]} 59... Kf8 {[%clk 0:00:06.4]} 60. Kg5 {[%clk 0:00:05.3]} 60... Kg7
{[%clk 0:00:06.7]} 61. Re7 {[%clk 0:00:04]} 61... Ra6 {[%clk 0:00:06.5]} 62. Rd7
{[%clk 0:00:04.3]} 62... Rb6 {[%clk 0:00:06.8]} 63. Rc7 {[%clk 0:00:04.1]} 63...
Ra6 {[%clk 0:00:07]} 64. Rd7 {[%clk 0:00:04.5]} 64... Rb6 {[%clk 0:00:07.4]} 65.
Rc7 {[%clk 0:00:04.9]} 65... Ra6 {[%clk 0:00:07.8]} 66. Rd7 {[%clk 0:00:05.4]}
1/2-1/2